bitfinex/quotes_BTCUSD_20250616
["timestamp","ask_amount","ask_price","bid_price","bid_amount"]
[1750033739472,0.86125192,105870.0,105860.0,0.00047098]
[1750033739687,0.95740114,105870.0,105860.0,0.00047098]
[1750033740354,0.56459098,105870.0,105860.0,0.00047098]
[1750033740560,0.86125192,105870.0,105860.0,0.00247098]
[1750033740770,0.86125192,105870.0,105860.0,0.00047098]
[1750033741203,0.86225192,105870.0,105860.0,0.00347098]
[1750033743134,1.01889192,105870.0,105860.0,0.00347098]
[1750033743561,1.11504114,105870.0,105860.0,0.00347098]
[1750033744899,1.15791728,105870.0,105860.0,0.00347098]
[1750033745109,6.20791728,105870.0,105860.0,0.00347098]
[1750033745350,6.18902682,105870.0,105860.0,0.00347098]
[1750033745778,6.19847174,105870.0,105860.0,0.00347098]
[1750033745984,6.18902673,105870.0,105860.0,0.00347098]
[1750033746425,5.53398261,105870.0,105860.0,0.00347098]
[1750033746671,0.43724176,105870.0,105860.0,0.00347098]
[1750033746875,0.43724176,105870.0,105860.0,0.03507098]
[1750033748702,0.43724176,105870.0,105860.0,0.01987098]
[1750033749139,0.83005192,105870.0,105860.0,0.01987098]
[1750033750211,0.43724176,105870.0,105860.0,0.01987098]
[1750033750424,0.43724176,105870.0,105860.0,0.03527098]
[1750033750847,0.83005192,105870.0,105860.0,0.03527098]
[1750033753391,0.341,105870.0,105860.0,0.03527098]
[1750033754355,0.8273489,105870.0,105860.0,0.03527098]
[1750033754779,0.73381016,105870.0,105860.0,0.03527098]
[1750033760340,5.9351376,105870.0,105860.0,0.00347098]
[1750033760551,5.94458261,105870.0,105860.0,0.00347098]
[1750033760777,5.97298861,105870.0,105860.0,0.00347098]
[1750033760966,5.98243388,105870.0,105860.0,0.00347098]
[1750033761208,6.0785831,105870.0,105860.0,0.00347098]
[1750033761423,6.08802864,105870.0,105860.0,0.00347098]
[1750033761636,6.0785831,105870.0,105860.0,0.00347098]
[1750033762090,6.08802846,105870.0,105860.0,0.00347098]
[1750033762298,6.097474,105870.0,105860.0,0.00347098]
[1750033762511,6.27694009,105870.0,105860.0,0.00347098]
[1750033762719,6.08802917,105870.0,105860.0,0.00347098]
[1750033763323,6.27694009,105870.0,105860.0,0.00347098]
[1750033763529,6.26749508,105870.0,105860.0,0.00347098]
[1750033763753,6.25804981,105870.0,105860.0,0.00347098]
[1750033763942,6.25804981,105870.0,105830.0,0.0261]
[1750033763943,5.80170543,105840.0,105830.0,0.01]
[1750033764149,6.41654742,105840.0,105830.0,0.01047122]
[1750033764418,6.59871537,105840.0,105830.0,0.01047122]
[1750033764630,6.61768133,105840.0,105830.0,0.01047122]
[1750033765238,6.60823365,105840.0,105830.0,0.01047122]
[1750033765418,6.61768142,105840.0,105830.0,0.01047122]
[1750033765677,6.61768133,105840.0,105830.0,0.01047122]
[1750033766294,6.62912919,105840.0,105830.0,0.01047122]
[1750033766533,6.61968133,105840.0,105830.0,0.01047122]
[1750033766749,6.63857705,105840.0,105830.0,0.01047122]
[1750033767264,0.04018952,105830.0,105810.0,0.01]
[1750033767467,5.89525192,105820.0,105810.0,0.01047169]
[1750033768797,5.92417582,105820.0,105810.0,0.01047169]
[1750033769233,5.92517582,105820.0,105810.0,0.01047169]
[1750033769458,5.95761525,105820.0,105810.0,0.01047169]
[1750033769667,6.24852377,105820.0,105810.0,0.01047169]
[1750033769886,6.23907403,105820.0,105810.0,0.01047169]
[1750033770085,6.24852368,105820.0,105810.0,0.01047169]
[1750033770513,6.25797351,105820.0,105810.0,0.01047169]
[1750033770720,6.24852368,105820.0,105810.0,0.01047169]
[1750033771631,0.73281016,105800.0,105790.0,0.09108936]
[1750033771858,0.73281016,105800.0,105790.0,0.09156148]
[1750033772092,0.34,105790.0,105780.0,0.026]
[1750033772319,5.87905192,105790.0,105780.0,0.01047238]
[1750033772529,5.87905192,105790.0,105780.0,0.00100572]
[1750033772738,5.90164107,105790.0,105770.0,0.07558936]
[1750033772950,0.82905192,105780.0,105770.0,0.09166226]
[1750033773810,0.8447998,105780.0,105770.0,0.09166226]
[1750033774914,0.8447998,105780.0,105770.0,0.0170729]
[1750033775329,0.8447998,105780.0,105770.0,0.0014729]
[1750033775553,0.93178144,105780.0,105770.0,0.0014729]
[1750033775763,0.73281016,105770.0,105760.0,0.0309]
[1750033775974,0.82905192,105770.0,105760.0,0.03137424]
[1750033776424,0.34,105770.0,105760.0,0.03137424]
[1750033776852,0.03557479,105770.0,105760.0,0.03137424]
[1750033777522,0.03557479,105770.0,105760.0,0.02190489]
[1750033777741,0.03557479,105770.0,105760.0,0.01627424]
[1750033777953,0.40855804,105780.0,105760.0,0.01627424]
[1750033778164,0.34,105770.0,105760.0,0.01627424]
[1750033780159,0.82905192,105770.0,105760.0,0.00047424]
[1750033780378,0.91542248,105770.0,105760.0,0.00047424]
[1750033780590,0.39281016,105760.0,105750.0,0.0256]
[1750033780804,0.52308375,105770.0,105750.0,0.0256]
[1750033781024,0.43671319,105770.0,105750.0,0.0256]
[1750033781283,0.82952335,105770.0,105750.0,0.0256]
[1750033783015,0.34047143,105770.0,105760.0,0.0163]
[1750033783243,0.83897746,105770.0,105750.0,0.01]
[1750033783460,0.00945635,105740.0,105720.0,0.0164]
[1750033783681,0.73281016,105730.0,105720.0,0.0164]
[1750033783938,0.34,105730.0,105720.0,0.0164]
[1750033784161,0.34,105730.0,105720.0,0.0327]
[1750033784382,0.81571535,105730.0,105710.0,0.0427]
[1750033785039,0.34,105720.0,105710.0,0.0427]
[1750033785271,0.34,105720.0,105710.0,0.01]
[1750033786201,0.43624176,105720.0,105710.0,0.01]
[1750033786416,0.80596841,105720.0,105710.0,0.01]
[1750033786644,0.85141626,105720.0,105710.0,0.01]
[1750033786853,0.86801626,105720.0,105710.0,0.01]
[1750033788476,0.85141626,105720.0,105710.0,0.02776761]
[1750033788696,0.84368452,105720.0,105710.0,0.02776743]
[1750033788933,0.83481542,105720.0,105710.0,0.01]
[1750033789102,0.47395884,105720.0,105710.0,0.01]
[1750033789318,0.47395884,105720.0,105710.0,0.02776742]
[1750033789319,0.84368566,105720.0,105710.0,0.02776742]
[1750033789529,0.85878566,105720.0,105710.0,0.02776754]
[1750033789746,0.92263385,105720.0,105710.0,0.02776774]
[1750033789967,0.91776308,105720.0,105710.0,0.01]
[1750033790222,0.91776308,105720.0,105710.0,0.0277692]
[1750033790438,0.92722167,105720.0,105710.0,0.01]
[1750033790649,0.96512843,105720.0,105710.0,0.01]
[1750033791498,0.97458737,105720.0,105710.0,0.01]
[1750033791709,0.96512843,105720.0,105710.0,0.01]
[1750033792344,0.96512834,105720.0,105710.0,0.01]
[1750033792758,0.97458719,105720.0,105710.0,0.01]
[1750033792967,0.97658719,105720.0,105710.0,0.01]
[1750033793200,6.02658719,105720.0,105710.0,0.01]
[1750033793408,6.02858719,105720.0,105710.0,0.01]
[1750033793611,6.18939074,105720.0,105710.0,0.00052439]
[1750033793747,6.19825957,105720.0,105710.0,0.00052439]
[1750033793976,5.11465918,105710.0,105700.0,0.01]
[1750033794150,5.84304561,105710.0,105700.0,0.01]
[1750033794353,5.85250502,105710.0,105700.0,0.01]
[1750033794556,6.20196534,105710.0,105700.0,0.01]
[1750033794864,6.20196507,105710.0,105700.0,0.01]
[1750033795067,6.20196505,105710.0,105700.0,0.01]
[1750033795557,6.19309667,105710.0,105700.0,0.01]
[1750033796277,6.20396505,105710.0,105700.0,0.01]
[1750033796729,6.20496512,105710.0,105700.0,0.01]
[1750033797137,6.18663692,105710.0,105700.0,0.01]
[1750033797338,6.19609676,105710.0,105700.0,0.01]
[1750033797992,6.20496522,105710.0,105700.0,0.00383928]
[1750033798210,0.34,105690.0,105670.0,0.0421]
[1750033798424,0.34,105690.0,105670.0,0.01]
[1750033798425,6.15060309,105680.0,105670.0,0.01]
[1750033798637,0.01892729,105660.0,105630.0,0.0406]
[1750033798878,0.34,105650.0,105640.0,0.0154]
[1750033799145,0.34,105650.0,105640.0,0.0306]
[1750033799356,0.34,105650.0,105630.0,0.0406]
[1750033799573,0.34047056,105650.0,105630.0,0.0406]
[1750033799791,0.37743986,105650.0,105640.0,0.0306]
[1750033800013,0.04431651,105650.0,105640.0,0.40032665]
[1750033800229,0.02857471,105650.0,105640.0,0.44135932]
[1750033800447,0.00047056,105650.0,105640.0,0.53860108]
[1750033800663,0.00047056,105650.0,105640.0,0.16887443]
[1750033800868,0.00047056,105650.0,105640.0,0.54096702]
[1750033801083,0.00047056,105650.0,105640.0,0.74685525]
[1750033801300,0.00047056,105650.0,105640.0,0.74346415]
[1750033801509,0.00047056,105650.0,105640.0,0.55414193]
[1750033801743,0.00047056,105650.0,105640.0,0.51310926]
[1750033801951,0.00047056,105650.0,105640.0,0.55482926]
[1750033802362,0.00147056,105650.0,105640.0,0.56282926]
[1750033802785,0.00047056,105650.0,105640.0,0.55782926]
[1750033803115,0.00047056,105650.0,105640.0,0.55382926]
[1750033803176,0.00047056,105650.0,105640.0,0.56329537]
[1750033803500,0.03697155,105680.0,105650.0,0.34]
[1750033803706,0.02810426,105680.0,105670.0,0.0164]
[1750033803926,0.0369713,105680.0,105670.0,0.0318]
[1750033804156,0.008867,105680.0,105670.0,0.0318]
[1750033804383,0.10404036,105690.0,105670.0,0.0318]
[1750033804589,0.01550072,105680.0,105670.0,0.0318]
[1750033804794,0.00886702,105680.0,105670.0,0.0318]
[1750033805002,0.00886703,105680.0,105670.0,0.0338]
[1750033805213,0.10404036,105690.0,105670.0,0.0338]
[1750033805426,0.11290743,105690.0,105670.0,0.0338]
[1750033805875,0.34,105680.0,105670.0,0.0338]
[1750033806083,0.34,105680.0,105670.0,0.0318]
[1750033806282,0.37792631,105680.0,105670.0,0.0358]
[1750033806717,0.37792633,105680.0,105670.0,0.0358]
[1750033806935,0.37792633,105680.0,105670.0,0.0378]
[1750033806936,0.37792632,105680.0,105670.0,0.0378]
[1750033807133,0.37792618,105680.0,105670.0,0.0164]
[1750033807354,0.37792618,105680.0,105670.0,0.0204]
[1750033807572,0.37792628,105680.0,105670.0,0.0204]
[1750033807784,0.38449439,105680.0,105670.0,0.0204]
[1750033808000,0.3933614,105680.0,105670.0,0.0204]
[1750033808210,0.39336139,105680.0,105670.0,0.3192]
[1750033808415,0.3933614,105680.0,105670.0,0.3374]
[1750033809040,0.39336142,105680.0,105670.0,0.3374]
[1750033809261,0.02430216,105680.0,105670.0,0.3374]
[1750033809506,0.09614922,105710.0,105670.0,0.3374]
[1750033809507,5.05,105700.0,105680.0,0.0317]
[1750033809702,0.10510979,105700.0,105680.0,0.03158557]
[1750033809911,0.34,105690.0,105670.0,0.3048]
[1750033810125,0.34886784,105690.0,105670.0,0.7157535]
[1750033810350,0.35549114,105690.0,105670.0,0.80726485]
[1750033810605,0.36435948,105690.0,105670.0,0.3191]
[1750033810816,0.78708426,105690.0,105670.0,0.29884719]
[1750033811028,0.38356092,105690.0,105670.0,0.29884719]
[1750033811238,0.39243266,105690.0,105670.0,0.29884719]
[1750033811453,0.39243283,105690.0,105670.0,0.79654876]
[1750033811790,0.39243361,105690.0,105670.0,0.40389526]
[1750033812218,0.39243378,105690.0,105670.0,0.40389526]
[1750033812449,0.38356092,105690.0,105670.0,0.40389526]
[1750033812660,0.04356092,105690.0,105680.0,0.4097535]
[1750033812871,0.05243415,105690.0,105680.0,0.4260535]
[1750033813083,0.00887313,105690.0,105680.0,0.4260535]
[1750033813294,0.34,105700.0,105680.0,0.4260535]
[1750033813505,0.34,105700.0,105680.0,0.0314]
[1750033813720,0.34,105690.0,105680.0,0.0163]
[1750033813939,0.34,105690.0,105670.0,0.33014719]
[1750033814148,0.34,105690.0,105680.0,0.3008]
[1750033814574,0.34,105690.0,105680.0,0.2988]
[1750033814982,0.36899049,105690.0,105680.0,0.2988]
[1750033816463,0.36899049,105690.0,105680.0,0.3008]
[1750033817122,0.38481904,105690.0,105680.0,0.3008]
[1750033817343,0.86703472,105690.0,105680.0,0.3008]
[1750033817561,0.97927648,105690.0,105680.0,0.3008]
[1750033818676,0.4810608,105690.0,105680.0,0.3008]
[1750033819779,0.4810608,105690.0,105680.0,0.3164]
[1750033819780,0.38481904,105690.0,105680.0,0.3164]
[1750033819991,0.38481904,105690.0,105680.0,0.0176]
[1750033822475,0.38481904,105690.0,105680.0,0.002]
[1750033822696,0.04481904,105690.0,105680.0,0.002]
[1750033823113,5.05,105690.0,105680.0,0.002]
[1750033823712,5.05,105690.0,105680.0,0.022]
[1750033824164,0.52838626,105690.0,105680.0,0.022]
[1750033824377,0.58901353,105690.0,105680.0,0.022]
[1750033825013,0.92901353,105690.0,105680.0,0.022]
[1750033825351,0.90738183,105690.0,105680.0,0.022]
[1750033825562,0.90015861,105690.0,105680.0,0.022]
[1750033825762,0.90903547,105690.0,105680.0,0.022]
[1750033826612,0.90015861,105690.0,105680.0,0.022]
[1750033826744,0.91675861,105690.0,105680.0,0.022]
[1750033827152,0.52210511,105690.0,105680.0,0.022]
[1750033827355,0.91675861,105690.0,105680.0,0.022]
[1750033827551,0.95334074,105690.0,105680.0,0.022]
[1750033827754,0.95334075,105690.0,105680.0,0.022]
[1750033827954,0.95334077,105690.0,105680.0,0.022]
[1750033828167,0.91675861,105690.0,105680.0,0.022]
[1750033828606,0.92563548,105690.0,105680.0,0.022]
[1750033828828,0.91675861,105690.0,105680.0,0.022]
[1750033828995,0.92563587,105690.0,105680.0,0.022]
[1750033829195,6.07178509,105690.0,105680.0,0.022]
[1750033829391,6.07178487,105690.0,105680.0,0.022]
[1750033829621,6.0717849,105690.0,105680.0,0.022]
[1750033829851,6.07178485,105690.0,105680.0,0.022]
[1750033830063,5.97563563,105690.0,105680.0,0.022]
[1750033830274,0.49818277,105690.0,105680.0,0.022]
[1750033830475,0.49818243,105690.0,105680.0,0.022]
[1750033830679,0.48930511,105690.0,105680.0,0.022]
[1750033830885,0.49818281,105690.0,105680.0,0.022]
[1750033831197,0.48930511,105690.0,105680.0,0.022]
[1750033831415,0.49818319,105690.0,105680.0,0.022]
[1750033831632,0.05306335,105690.0,105680.0,0.45832357]
[1750033831846,0.05306335,105690.0,105680.0,0.48992357]
[1750033832270,0.05306335,105690.0,105680.0,0.09527007]
[1750033832708,0.05306335,105690.0,105680.0,0.0536]
[1750033835532,0.39306335,105690.0,105680.0,0.0536]
[1750033835746,0.40194234,105690.0,105680.0,0.0536]
[1750033836166,0.4019424,105690.0,105680.0,0.0536]
[1750033836367,0.39306335,105690.0,105680.0,0.0536]
[1750033836475,0.40194276,105690.0,105680.0,0.0536]
[1750033836683,0.39306335,105690.0,105680.0,0.0536]
[1750033836883,0.40194308,105690.0,105680.0,0.0536]
[1750033837309,0.4019431,105690.0,105680.0,0.0536]
[1750033837534,0.40194318,105690.0,105680.0,0.0536]
[1750033837733,0.41082302,105690.0,105680.0,0.3524]
[1750033837963,0.40194318,105690.0,105680.0,0.3524]
[1750033838364,0.41082299,105690.0,105680.0,0.3524]
[1750033838579,0.41082293,105690.0,105680.0,0.3524]
[1750033838781,0.40194318,105690.0,105680.0,0.3524]
[1750033839438,0.4108228,105690.0,105680.0,0.3524]
[1750033839787,0.41082276,105690.0,105680.0,0.3524]
[1750033839988,0.40194318,105690.0,105680.0,0.3524]
[1750033840230,0.41082346,105690.0,105680.0,0.3524]
[1750033840639,0.41082368,105690.0,105680.0,0.3524]
[1750033840817,0.40194318,105690.0,105680.0,0.3524]
[1750033841274,0.41082363,105690.0,105680.0,0.3524]
[1750033841578,0.48249089,105690.0,105680.0,0.337]
[1750033841743,0.49137122,105690.0,105680.0,0.337]
[1750033841941,0.48249089,105690.0,105680.0,0.337]
[1750033842141,1.00548615,105690.0,105680.0,0.3208]
[1750033842356,1.01436559,105690.0,105680.0,0.3208]
[1750033842565,1.01436559,105690.0,105680.0,0.022]
[1750033842566,6.25070972,105690.0,105680.0,0.022]
[1750033842774,6.27536427,105690.0,105680.0,0.022]
[1750033842988,6.32666572,105690.0,105680.0,0.022]
[1750033843382,6.33612735,105690.0,105680.0,0.022]
[1750033843596,6.33612726,105690.0,105680.0,0.022]
[1750033843810,6.32666572,105690.0,105680.0,0.022]
[1750033844019,6.52536001,105690.0,105680.0,0.02]
[1750033844430,6.32666572,105690.0,105680.0,0.02]
[1750033844631,6.51589892,105690.0,105680.0,0.02]
[1750033844842,6.32666626,105690.0,105680.0,0.02]
[1750033845283,6.51689892,105690.0,105680.0,0.00365]
[1750033845685,6.51589892,105690.0,105680.0,0.00365]
[1750033845947,6.50743765,105690.0,105680.0,0.00365]
[1750033847601,6.42688994,105690.0,105680.0,0.00365]
[1750033848037,6.82154344,105690.0,105680.0,0.00365]
[1750033848260,6.42688994,105690.0,105680.0,0.00365]
[1750033850027,6.03785728,105690.0,105680.0,0.00365]
[1750033850200,6.23789728,105690.0,105680.0,0.00365]
[1750033850448,6.3340465,105690.0,105680.0,0.00365]
[1750033850656,6.52327916,105690.0,105680.0,0.00365]
[1750033851279,6.51381771,105690.0,105680.0,0.00365]
[1750033853800,0.01454085,105680.0,105640.0,0.05439374]
[1750033854004,0.3946535,105650.0,105640.0,0.02944961]
[1750033854128,0.3946535,105650.0,105640.0,0.00675592]
[1750033854327,0.3946535,105650.0,105640.0,0.00675595]
[1750033854538,0.3946535,105650.0,105640.0,0.00675598]
[1750033855047,0.7346535,105650.0,105640.0,8.947e-05]
[1750033855283,0.7346535,105650.0,105640.0,0.00675604]
[1750033855452,0.7346535,105650.0,105640.0,0.00675606]
[1750033855851,0.7346535,105650.0,105640.0,0.02255606]
[1750033856056,0.34,105650.0,105640.0,0.02255606]
[1750033856269,0.34,105650.0,105640.0,0.02555606]
[1750033856497,0.34,105650.0,105640.0,0.01888947]
[1750033856696,0.34,105650.0,105640.0,0.02555606]
[1750033856948,0.34,105650.0,105640.0,0.01888947]
[1750033857084,0.34,105650.0,105640.0,0.02955606]
[1750033857456,0.34,105650.0,105640.0,0.02288947]
[1750033858179,0.41499535,105650.0,105640.0,0.01375606]
[1750033858814,0.41499535,105650.0,105640.0,0.00708947]
[1750033859246,0.41499535,105650.0,105640.0,0.01375606]
[1750033859684,0.80964885,105650.0,105640.0,0.01375606]
[1750033859921,0.80964885,105650.0,105640.0,0.00708947]
[1750033860134,0.80964885,105650.0,105640.0,0.01375606]
[1750033860354,0.90589061,105650.0,105640.0,0.00708947]
[1750033860566,0.90589061,105650.0,105640.0,0.01375631]
[1750033860776,5.98829061,105650.0,105640.0,0.01375631]
[1750033860985,6.01229586,105650.0,105640.0,0.01375688]
[1750033861213,6.0312252,105650.0,105640.0,0.00708947]
[1750033861428,6.0312252,105650.0,105640.0,0.00408947]
[1750033861429,6.43534427,105650.0,105640.0,0.00408947]
[1750033861649,6.61518399,105650.0,105640.0,0.00366779]
[1750033861863,5.10033069,105640.0,105630.0,0.01]
[1750033862072,5.79648578,105640.0,105630.0,0.01047056]
[1750033862508,5.78702039,105640.0,105630.0,0.01047056]
[1750033862956,5.82902039,105640.0,105630.0,0.01047056]
[1750033863170,6.60661217,105640.0,105630.0,0.01047056]
[1750033863385,6.7959352,105640.0,105630.0,0.01247056]
[1750033863587,6.59714687,105640.0,105630.0,0.01247056]
[1750033864066,6.78646909,105640.0,105630.0,0.00447056]
[1750033864300,6.78646909,105640.0,105600.0,0.01]
[1750033864301,5.0759688,105610.0,105600.0,0.01]
[1750033864524,0.34,105600.0,105580.0,0.52673617]
[1750033864734,0.49089526,105590.0,105580.0,0.52673617]
[1750033864947,0.09624176,105590.0,105580.0,0.53563015]
[1750033865181,0.34,105600.0,105580.0,0.95288967]
[1750033865410,0.02791958,105590.0,105580.0,1.01753889]
[1750033865651,0.34,105610.0,105580.0,1.13638953]
[1750033865874,0.028474,105620.0,105600.0,0.0315]
[1750033866090,0.007,105610.0,105600.0,0.0325]
[1750033866961,0.01584747,105610.0,105600.0,0.0315]
[1750033867165,0.43671211,105620.0,105600.0,0.0315]
[1750033867781,0.002,105610.0,105600.0,0.4261535]
[1750033868004,0.002,105610.0,105600.0,0.0315]
[1750033868959,0.01780074,105610.0,105600.0,0.0315]
[1750033869181,0.85912714,105620.0,105600.0,0.0315]
[1750033869410,0.86112714,105620.0,105600.0,0.0325]
[1750033869626,0.95527636,105620.0,105600.0,0.0325]
[1750033870345,0.95527636,105620.0,105600.0,0.0162]
[1750033870590,0.95727636,105620.0,105600.0,0.0162]
[1750033870826,1.11547636,105620.0,105600.0,0.0152]
[1750033871051,1.11647636,105620.0,105600.0,0.0152]
[1750033871284,0.56362286,105620.0,105600.0,0.0152]
[1750033871519,0.57887398,105620.0,105600.0,0.0152]
[1750033871730,0.73695398,105620.0,105600.0,0.0152]
[1750033871950,0.48272476,105620.0,105600.0,0.0152]
[1750033872180,0.48272476,105620.0,105600.0,0.0306]
[1750033872625,0.48272476,105620.0,105600.0,0.0152]
[1750033874239,0.87737826,105620.0,105600.0,0.0152]
[1750033874654,0.48272476,105620.0,105600.0,0.0152]
[1750033874870,0.94850184,105620.0,105600.0,0.0152]
[1750033875721,0.55384834,105620.0,105600.0,0.0152]
[1750033875903,0.55384834,105620.0,105590.0,0.7240535]
[1750033876100,0.55384834,105620.0,105590.0,0.74666729]
[1750033876934,0.55184834,105620.0,105590.0,0.74666729]
[1750033877174,0.55384834,105620.0,105590.0,0.74666729]
[1750033877600,0.55284834,105620.0,105590.0,0.74666729]
[1750033877770,0.55384834,105620.0,105590.0,0.74666729]
[1750033878865,0.55384834,105620.0,105600.0,0.0159]
[1750033879084,0.386483,105620.0,105600.0,0.4258535]
[1750033879337,0.386483,105620.0,105600.0,0.4249535]
[1750033879561,0.386483,105620.0,105600.0,0.44757947]
[1750033879778,0.4437544,105620.0,105600.0,0.44757947]
[1750033879985,0.384483,105620.0,105610.0,0.015]
[1750033880192,0.386483,105620.0,105610.0,0.015]
[1750033880624,0.385483,105620.0,105610.0,0.015]
[1750033880844,0.386483,105620.0,105610.0,0.015]
[1750033881057,0.384483,105620.0,105610.0,0.015]
[1750033881269,0.385483,105620.0,105610.0,0.015]
[1750033881699,0.4278784,105620.0,105610.0,0.015]
[1750033882375,0.386483,105620.0,105610.0,0.0305]
[1750033883377,0.383723,105620.0,105610.0,0.0305]
[1750033883565,0.383723,105620.0,105610.0,0.015]
[1750033887306,0.383723,105620.0,105610.0,0.03768971]
[1750033889390,0.79596615,105620.0,105610.0,0.02268971]
[1750033889623,0.34,105610.0,105600.0,0.2988]
[1750033889854,0.34,105610.0,105600.0,0.3215206]
[1750033890467,5.91149526,105610.0,105600.0,0.0227206]
[1750033890692,0.0163,105600.0,105580.0,0.7123424]
[1750033890925,0.0163,105600.0,105580.0,0.54945699]
[1750033890926,0.50719526,105600.0,105580.0,0.54945699]
[1750033891116,0.34,105590.0,105580.0,0.71599071]
[1750033891321,0.34,105590.0,105580.0,0.71599072]
[1750033891527,0.34,105590.0,105580.0,0.71599078]
[1750033891722,0.34,105590.0,105580.0,0.55835069]
[1750033892171,0.34,105590.0,105580.0,0.55835068]
[1750033892369,0.34,105590.0,105580.0,0.55835067]
[1750033892534,0.34,105590.0,105580.0,0.56905699]
[1750033893072,0.34,105590.0,105580.0,0.57995061]
[1750033893309,0.34,105590.0,105580.0,0.57995058]
[1750033893516,0.34,105590.0,105580.0,0.57795058]
[1750033893707,0.34,105610.0,105590.0,0.0153]
[1750033893932,0.43624176,105610.0,105590.0,0.03929344]
[1750033894157,0.43624176,105610.0,105590.0,0.05310958]
[1750033894487,0.43624176,105610.0,105590.0,0.06200296]
[1750033894711,0.43624176,105610.0,105590.0,0.05310958]
[1750033894907,0.54759098,105610.0,105590.0,0.05310958]
[1750033895853,0.43624176,105610.0,105590.0,0.05410958]
[1750033899887,0.45184176,105610.0,105590.0,0.03900958]
[1750033903075,0.86199526,105610.0,105590.0,0.02370958]
[1750033903290,0.86199526,105610.0,105590.0,0.001]
[1750033904337,0.46734176,105610.0,105590.0,0.001]
[1750033904530,0.94669659,105610.0,105590.0,0.001]
[1750033906103,0.94669659,105610.0,105590.0,0.02370142]
[1750033907746,0.84649526,105610.0,105590.0,0.03990119]
[1750033908143,0.45184176,105610.0,105590.0,0.03990119]
[1750033908848,0.86199526,105610.0,105590.0,0.02370119]
[1750033909279,5.88089526,105600.0,105590.0,0.001]
[1750033909479,0.86229526,105600.0,105590.0,0.001]
[1750033909709,1.10785845,105600.0,105590.0,0.001]
[1750033909958,1.11732733,105600.0,105590.0,0.001]
[1750033910384,1.11732742,105600.0,105590.0,0.001]
[1750033910796,0.3565,105590.0,105580.0,0.52673617]
[1750033910989,0.45274176,105590.0,105580.0,0.52673617]
[1750033911338,0.50231972,105590.0,105580.0,0.52673617]
[1750033911731,0.26683378,105590.0,105580.0,0.52673617]
[1750033911931,0.11274176,105590.0,105580.0,0.52873617]
[1750033912134,0.11274176,105590.0,105580.0,0.53759753]
[1750033912335,0.11274176,105590.0,105580.0,0.53959758]
[1750033913771,0.11274176,105590.0,105580.0,0.53073617]
[1750033913973,0.11274176,105590.0,105580.0,0.53959758]
[1750033914180,0.11274176,105590.0,105580.0,0.53073617]
[1750033914379,0.11274176,105590.0,105580.0,0.53959738]
[1750033914583,0.11274176,105590.0,105580.0,0.53073617]
[1750033914789,0.52279526,105590.0,105580.0,0.53959739]
[1750033914990,0.52279526,105590.0,105580.0,0.53073617]
[1750033915400,0.59176567,105590.0,105580.0,0.53963026]
[1750033915618,0.59176567,105590.0,105580.0,0.53073617]
[1750033915820,0.59176567,105590.0,105580.0,0.53563049]
[1750033916048,0.59176567,105590.0,105580.0,0.53663051]
[1750033916474,0.59176567,105590.0,105580.0,0.52773617]
[1750033916671,0.60630652,105590.0,105580.0,0.52773617]
[1750033916873,0.61577639,105590.0,105580.0,0.53663077]
[1750033917327,0.61577639,105590.0,105580.0,0.536631]
[1750033917627,0.61577639,105590.0,105580.0,0.53663106]
[1750033917628,0.60630652,105590.0,105580.0,0.53663106]
[1750033917824,0.69449611,105590.0,105580.0,0.53663106]
[1750033918665,0.69449611,105590.0,105580.0,0.53663092]
[1750033918804,0.69449611,105590.0,105580.0,0.52773617]
[1750033919018,0.69445611,105590.0,105580.0,0.53663102]
[1750033919221,0.69445611,105590.0,105580.0,0.52773617]
[1750033920015,0.69445611,105590.0,105580.0,0.53663098]
[1750033920220,0.69445611,105590.0,105580.0,0.53663099]
[1750033920413,0.69441611,105590.0,105580.0,0.53663099]
[1750033920535,0.22101445,105590.0,105580.0,0.52773617]
[1750033920736,0.69441611,105590.0,105580.0,0.52773617]
[1750033920945,0.69441611,105590.0,105580.0,0.53663078]
[1750033921153,1.03441611,105590.0,105580.0,0.52773617]
[1750033921370,1.03441611,105590.0,105580.0,0.53663076]
[1750033921572,0.87733611,105590.0,105580.0,0.53663076]
[1750033921862,1.03441611,105590.0,105580.0,0.53663075]
[1750033922076,0.48268261,105590.0,105580.0,0.5366309]
[1750033922283,0.43624176,105590.0,105580.0,0.52773617]
[1750033924251,0.05998,105610.0,105580.0,1.11254967]
[1750033924459,0.05998,105610.0,105580.0,1.23141783]
[1750033924460,0.09624176,105600.0,105580.0,1.23141783]
[1750033924676,0.09624176,105600.0,105590.0,0.0312]
[1750033924885,0.34,105610.0,105590.0,0.0312]
[1750033925095,5.05,105600.0,105590.0,0.0312]
[1750033925302,5.39,105600.0,105590.0,0.0312]
[1750033925509,5.05,105600.0,105590.0,0.0312]
[1750033925685,0.342,105600.0,105590.0,0.4258535]
[1750033925915,0.34,105600.0,105590.0,0.0312]
[1750033926310,0.342,105600.0,105590.0,0.1902]
[1750033926535,0.342,105600.0,105590.0,0.21291715]
[1750033927545,0.342,105600.0,105590.0,0.54471987]
[1750033927751,0.342,105600.0,105590.0,0.05391715]
[1750033927960,0.342,105600.0,105590.0,0.21287715]
[1750033928165,0.343,105600.0,105590.0,0.21287715]
[1750033931834,0.343,105600.0,105590.0,0.05391715]
[1750033932046,0.78157768,105600.0,105590.0,0.1588]
[1750033932261,0.79667768,105600.0,105590.0,0.15884]
[1750033932473,0.40202418,105600.0,105590.0,0.15884]
[1750033932951,0.49826594,105600.0,105580.0,1.00073617]
[1750033933180,0.49826594,105600.0,105580.0,1.0234479]
[1750033933678,0.34,105590.0,105580.0,0.8646479]
[1750033933930,0.34,105590.0,105580.0,1.0070479]
[1750033935302,0.34,105590.0,105580.0,1.0080479]
[1750033936603,0.34,105590.0,105580.0,0.8492479]
[1750033936837,0.84719526,105590.0,105580.0,0.5504479]
[1750033937067,0.84719526,105590.0,105580.0,0.7090079]
[1750033937288,0.45254176,105590.0,105580.0,0.7090079]
[1750033939819,0.43624176,105590.0,105580.0,0.7090079]
[1750033940044,0.36964085,105610.0,105580.0,1.1347614]
[1750033940258,0.34,105590.0,105580.0,1.23091062]
[1750033941012,0.34,105590.0,105580.0,1.22991062]
[1750033941215,0.09624176,105600.0,105580.0,1.22991062]
[1750033942170,0.09624176,105600.0,105580.0,1.23091062]